{"text_format":"1","workbook":"xlsx","n_sheets":2,"sheets":["Pasiūlymas","Subtiekėjai"],"not_rendered":{"charts":0,"images":0,"macros":1,"external_links":0,"defined_names":1,"comments":0,"pivot_tables":0},"unopened":[],"bounds":{"document_bytes":16777216,"sheet_cells":100000,"rows_first":2000,"rows_last":500,"rows_between":2000,"halvings":0,"cell_chars":16384,"cell_head_chars":4096},"cells_cut":0,"cells_raw":0,"read":"whole","date_system":"1900"}

{"sheet":"Pasiūlymas","index":0,"n_rows":673,"n_cols":13,"rows_kept":673,"cut":false,"hidden":false,"merged":[[630,1,630,7],[643,1,643,7],[653,1,653,7],[659,1,659,7],[665,1,665,7],[582,1,582,7],[590,1,590,7],[598,1,598,7],[609,1,609,7],[620,1,620,7],[485,1,485,7],[522,1,522,7],[557,1,557,7],[568,1,568,7],[575,1,575,7],[373,1,373,7],[380,1,380,7],[387,1,387,7],[416,1,416,7],[433,1,433,7],[315,1,315,7],[322,1,322,7],[331,1,331,7],[353,1,353,7],[363,1,363,7],[274,1,274,7],[283,1,283,7],[294,1,294,7],[300,1,300,7],[308,1,308,7],[212,1,212,7],[229,1,229,7],[247,1,247,7],[254,1,254,7],[264,1,264,7],[165,1,165,7],[176,1,176,7],[183,1,183,7],[190,1,190,7],[205,1,205,7],[126,1,126,7],[133,1,133,7],[140,1,140,7],[147,1,147,7],[156,1,156,7],[28,1,28,7],[89,1,89,7],[105,1,105,7],[112,1,112,7],[119,1,119,7],[18,0,18,1],[18,2,18,4],[19,0,19,1],[19,2,19,4],[22,0,22,5],[15,0,15,1],[15,2,15,4],[16,0,16,1],[16,2,16,4],[17,0,17,1],[17,2,17,4],[12,0,12,1],[12,2,12,4],[13,0,13,1],[13,2,13,4],[14,0,14,1],[14,2,14,4],[9,0,9,1],[9,2,9,4],[10,0,10,1],[10,2,10,4],[11,0,11,1],[11,2,11,4]]}
["Perkančioji organizacija, kuriai teikiamas pasiūlymas:",null,"VŠĮ Kauno klinikinė ligoninė"]
[]
[null,"PASIŪLYMAS"]
[null,"Vienkartinės medicininės priemonės"]
[]
["Data:","2018-04-12"]
["Nr.:",43202]
["Vieta:","Vilnius"]
[]
["Tiekėjo pavadinimas /Jeigu dalyvauja ūkio subjektų grupė, surašomi visi dalyvių pavadinimai/",null,"UAB Ilsanta"]
["Įmonės kodas /Jeigu dalyvauja ūkio subjektų grupė, surašomi visi dalyvių kodai/",null,110498671]
["PVM mokėtojo kodas /Jeigu dalyvauja ūkio subjektų grupė, surašomi visi dalyvių kodai/",null,"LT104986716"]
["Banko pavadinimas, banko kodas, sąskaitos Nr.",null,"Luminor"]
["Tiekėjo adresas /Jeigu dalyvauja ūkio subjektų grupė, surašomi visi dalyvių adresai/",null,"Goštauto g/40A"]
["Telefono numeris",null,868794866]
["Fakso numeris",null,852691611]
["El. pašto adresas",null,"sandra@ilsanta.lt"]
["Asmens, pasirašiusio pasiūlymą saugiu elektroniniu parašu, vardas, pavardė, pareigos ",null,"Sandra Čaikė"]
["Asmens, įgalioto pasirašyti sutartį, vardas, pavardė, pareigos",null,"Tomas Godelis"]
[]
[]
[]
["1. Šiuo pasiūlymu pažymime, kad sutinkame su visomis pirkimo sąlygomis, nustatytomis:\n1) pirkimo skelbime, paskelbtame Viešųjų pirkimų įstatymo nustatyta tvarka;\n2) pirkimo sąlygose ir kituose pirkimo dokumentuose (jų paaiškinimuose, papildymuose).\n"]
[]
["Siūlomas pirkimo objektas visiškai atitinka pirkimo sąlygose nustatytus reikalavimus ir jo kaina yra:"]
[]
[]
["Nr.","Pavadinimas","Kiekis","Mato vienetas","Kaina be PVM","Suma be PVM","Siūlomos prekės pavadinimas ir/ar gamintojas","Siūlomos prekės parametrai",null,null,"","",""]
["301.","Sauskelnės"]
["301.1.","Sauskelnės suaugusiems Small",1000,"Vnt.",null,null,null,"","",""]
["301.1.1.","Normalios sauskelnės, kurių sugėrimas pagal ne mažiau kaip 1400 ml"]
["301.1.2.","Liemens apimtis 50 – 80 cm. "]
["301.1.3.","Turi atitikti Medicinos prietaisų direktyvą, ženklintos CE ženklu.",null,null,null,null,null,null,null,""]
["301.1.4.","Sugeriamasis sluoksnis turi būti pagamintas iš super absorbuojančių polimerų. ",null,null,null,null,null,null,null,null,null,""]
["301.1.5.","Turi būti tvirtinamos keturiais lipdukais po du kiekviename sauskelnių šone, kurių kiekvienas turi būti klijuojamas iš abiejų pusių (dvigubas lipdukas). ",null,null,null,null,null,null,null,null,null,""]
["301.1.6.","Privalo turėti skysčio indikatorių.",null,null,null,null,null,null,null,"","",""]
["301.2.","Sauskelnės suaugusiems Medium",1000,"Vnt.",null,null,null,"","","","",""]
["301.2.1.","Vidutinio dydžio sauskelnės, kurių sugėrimas ne mažiau 2000 ml",null,null,null,null,null,null,null,"","",""]
["301.2.2.","Liemens apimtis 80 – 115 cm"]
["301.2.3.","Turi atitikti Medicinos prietaisų direktyvą, ženklintos CE ženklu"]
["301.2.4.","Privalo turėti orui laidžią juosmens sritį paciento komfortui užtikrinti",null,null,null,null,null,null,null,""]
["301.2.5.","Privalo turėti nemalonų kvapą neutralizuojančią sistemą"]
["301.2.6.","Sugeriamasis sluoksnis turi būti pagamintas iš super absorbuojančių polimerų",null,null,null,null,null,null,null,null,null,""]
["301.2.7.","Turi būti tvirtinamos keturiais lipdukais po du kiekviename sauskelnių šone, kurių kiekvienas turi būti klijuojamas iš abiejų pusių (dvigubas lipdukas). ",null,null,null,null,null,null,null,"",null,""]
["301.2.8.","Privalo turėti skysčio indikatorių.",null,null,null,null,null,null,null,null,null,""]
["301.2.9.","Vidinis sauskelnių sluoksnis turi būti impregnuotas odą drėkinančiomis ir raminančiomis medžiagomis."]
["301.3.","Sauskelnės suaugusiems Large",40000,"Vnt.",null,null,null,"","","","",""]
["301.3.1.","Didelės sauskelnės, kurių absorbcija ne mažiau 2300 ml",null,null,null,null,null,null,null,"","",""]
["301.3.2.","L dydis – liemens apimtis 115-150 cm",null,null,null,null,null,null,null,"","",""]
["301.3.3.","Turi atitikti Medicinos prietaisų direktyvą, ženklintos CE ženklu"]
["301.3.4.","Privalo turėti orui laidžią juosmens sritį paciento komfortui užtikrinti"]
["301.3.5.","Privalo turėti nemalonų kvapą neutralizuojančią sistemą"]
["301.3.6.","Sugeriamasis sluoksnis turi būti pagamintas iš super absorbuojančių polimerų"]
["301.3.7.","Turi būti tvirtinamos keturiais lipdukais po du kiekviename sauskelnių šone, kurių kiekvienas turi būti klijuojamas iš abiejų pusių (dvigubas lipdukas)"]
["301.3.8.","Privalo turėti skysčio indikatorių"]
["301.3.9.","Vidinis sauskelnių sluoksnis turi būti impregnuotas odą drėkinančiomis ir raminančiomis medžiagomis"]
["301.4.","Sauskelnės suaugusiems Large gausiai sugeriančios",10000,"Vnt.",null,null,null,"","",""]
["301.4.1.","Didelės sauskelnės, kurių absorbcija ne mažiau 3900 ml. "]
["301.4.2.","L dydis – liemens apimtis 115-150 cm. "]
["301.4.3.","Turi atitikti Medicinos prietaisų direktyvą, ženklintos CE ženklu"]
["301.4.4.","Privalo turėti orui laidžią juosmens sritį paciento komfortui užtikrinti"]
["301.4.5.","Privalo turėti nemalonų kvapą neutralizuojančią sistemą"]
["301.4.6.","Sugeriamasis sluoksnis turi būti pagamintas iš super absorbuojančių polimerų"]
["301.4.7.","Turi būti tvirtinamos keturiais lipdukais po du kiekviename sauskelnių šone, kurių kiekvienas turi būti klijuojamas iš abiejų pusių (dvigubas lipdukas)"]
["301.4.8.","Privalo turėti skysčio indikatorių"]
["301.4.9.","Vidinis sauskelnių sluoksnis turi būti impregnuotas odą drėkinančiomis ir raminančiomis medžiagomis"]
["301.5.","Sauskelnės suaugusiems anatominės L",1000,"Vnt.",null,null,null,"","",""]
["301.5.1.","Orui laidžios (sunkiam šlapimo nelaikymui)."]
["301.5.2.","Ne juostinės. "]
["301.5.3.","Visas išorinis sluoksnis sudarytas iš vientisos orui laidžios medžiagos, nepraleidžiančios drėgmės"]
["301.5.4.","Be latekso"]
["301.5.5.","Turi turėti nemalonių kvapų neutralizuojančią sistemą. "]
["301.5.6."," Dvigubas sugeriantis sluoksnis. "]
["301.5.7.","Tvirtinamos daugkartiniai lipdukais, kurių klijavimo vietą galima keisti"]
["301.5.8.","Turi turėti skysčių indikatorių"]
["301.5.9.","Juosmens -  klubų apimtis 100-150 cm, sugėrimas ne mažiau 2500ml"]
["301.6.","Sauskelnės suaugusiems anatominės XL",1000,"Vnt.",null,null,null,"","",""]
["301.6.1.","Orui laidžios (sunkiam šlapimo nelaikymui)"]
["301.6.2.","Ne juostinės"]
["301.6.3.","Visas išorinis sluoksnis sudarytas iš vientisos orui laidžios medžiagos, nepraleidžiančios drėgmės"]
["301.6.4.","Be latekso"]
["301.6.5.","Turi turėti nemalonių kvapų neutralizuojančią sistemą"]
["301.6.6.","Dvigubas sugeriantis sluoksnis"]
["301.6.7.","Tvirtinamos daugkartiniai lipdukais, kurių klijavimo vietą galima keisti"]
["301.6.8.","Turi turėti skysčių indikatorių. Juosmens -  klubų apimtis 130-170 cm, sugėrimas ne mažiau 2500ml\n"]
[null,"","","","Suma be PVM",null,"","","","","",""]
[null,"","","","PVM suma",null,"","","","","",""]
[null,"","","","Suma su PVM",null,"","","","","",""]
[]
["302.","Sauskelnės vaikams"]
["302.1.","Sauskelnės vaikams MINI",10000,"Vnt.",null,null,null,"","",""]
["302.1.1.","Nuo 2-3 iki 5-6 kg. "]
["302.1.2.","Viršutinis sluoksnis švelnus, orui laidus"]
["302.1.3.","Vidinis sluoksnis minkštas, neaustinės medžiagos"]
["302.2.","Sauskelnės vaikams MIDI",2000,"Vnt.",null,null,null,"","",""]
["302.2.1.","Nuo 4-5 iki 9-10 kg"]
["302.2.2.","Viršutinis sluoksnis švelnus, orui laidus"]
["302.2.3.","Vidinis sluoksnis minkštas, neaustinės medžiagos"]
["302.3.","Sauskelnės vaikams MAXI",2000,"Vnt.",null,null,null,"","",""]
["302.3.1.","Nuo 12-15 iki 20-25 kg"]
["302.3.2.","Vidinis sluoksnis minkštas, neaustinės medžiagos."]
[null,"","","","Suma be PVM",null,"","","","","",""]
[null,"","","","PVM suma",null,"","","","","",""]
[null,"","","","Suma su PVM",null,"","","","","",""]
[]
["303.","Pienelis kūdikių odai tepti"]
["303.1.","Pienelis kūdikių odai tepti",5000,"ml",null,null,null,"","",""]
["303.1.1.","Sudėtyje nėra konservantų, cheminių medžiagų ar kitų kūdikiui pakenkti galinčių priedų"]
[null,"","","","Suma be PVM",null,"","","","","",""]
[null,"","","","PVM suma",null,"","","","","",""]
[null,"","","","Suma su PVM",null,"","","","","",""]
[]
["304.","Kremas kūdikiams be cinko oksido"]
["304.1.","Kremas kūdikiams be cinko oksido",4000,"g",null,null,null,"","",""]
["304.1.1."," Sudėtyje nėra konservantų, cheminių medžiagų ar kitų kūdikiui pakenkti galinčių priedų"]
[null,"","","","Suma be PVM",null,"","","","","",""]
[null,"","","","PVM suma",null,"","","","","",""]
[null,"","","","Suma su PVM",null,"","","","","",""]
[]
["305.","Pudra kūdikiams"]
["305.1.","Pudra kūdikiams",5000,"g",null,null,null,"","",""]
["305.1.1.","Pudros sudėtyje nėra konservantų, cheminių medžiagų ar kitų kūdikiui pakenkti galinčių priedų"]
[null,"","","","Suma be PVM",null,"","","","","",""]
[null,"","","","PVM suma",null,"","","","","",""]
[null,"","","","Suma su PVM",null,"","","","","",""]
[]
["306.","Servetėlės drėgnos vaikiškos"]
["306.1.","Servetėlės drėgnos vaikiškos",35000,"Vnt.",null,null,null,"","",""]
["306.1.1.","Servetėlių sudėtyje nėra konservantų, cheminių medžiagų ar kitų kūdikiui pakenkti galinčių priedų"]
[null,"","","","Suma be PVM",null,"","","","","",""]
[null,"","","","PVM suma",null,"","","","","",""]
[null,"","","","Suma su PVM",null,"","","","","",""]
[]
["307.","Šampūnas kūdikiams"]
["307.1.","Šampūnas kūdikiams",12500,"ml",null,null,null,"","",""]
["307.1.1.","Šampūno sudėtyje nėra konservantų, cheminių medžiagų ar kitų kūdikiui pakenkti galinčių priedų"]
[null,"","","","Suma be PVM",null,"","","","","",""]
[null,"","","","PVM suma",null,"","","","","",""]
[null,"","","","Suma su PVM",null,"","","","","",""]
[]
["308.","Krapštukai higieniniai"]
["308.1.","Krapštukai higieniniai",40000,"Vnt.",null,null,null,"","",""]
["308.1.1.","Supakuoti dėžutėse po 100-200 vnt."]
[null,"","","","Suma be PVM",null,"","","","","",""]
[null,"","","","PVM suma",null,"","","","","",""]
[null,"","","","Suma su PVM",null,"","","","","",""]
[]
["309.","Tamponas"]
["309.1.","Tamponas",100,"Vnt.",null,null,null,"","",""]
["309.1.1.","2cm x 5m"]
["309.1.2.","Nosies ir veido ertmių tamponavimui, kraujavimui stabdyti"]
["309.1.3.","Neutralus tepalo tamponas, impregnuotas indiderentiška angliavandenio žele"]
[null,"","","","Suma be PVM",null,"","","","","",""]
[null,"","","","PVM suma",null,"","","","","",""]
[null,"","","","Suma su PVM",null,"","","","","",""]
[]
["310.","Tamponas kraujavimui iš nosies stabdyti"]
["310.1.","Tamponas kraujavimui iš nosies stabdyti",50,"Vnt.",null,null,null,"","",""]
["310.1.1.","Vienpusiai tamponai kraujavimui iš nosies stabdyti, 10cm (± 0,5cm). "]
["310.1.2.","Skysčio absorbcija iki 20 kartų tampono svorio"]
["310.1.3.","Tamponas pagamintas iš standartinės kempinės ir mikrodispersinės oksiduotos  celiuliozės (augalinės kilmės) ir padengtas lubrikantu."]
[null,"","","","Suma be PVM",null,"","","","","",""]
[null,"","","","PVM suma",null,"","","","","",""]
[null,"","","","Suma su PVM",null,"","","","","",""]
[]
["311.","Patanatominiai indai"]
["311.1.","Indas patanatominis",2000,"Vnt.",null,null,null,"","",""]
["311.1.1.","1 ltr. talpos"]
["311.2.","Indas patanatominis",400,"Vnt.",null,null,null,"","",""]
["311.2.1.","2,5 ltr. talpos"]
["311.3.","Indas patanatominis",500,"Vnt.",null,null,null,"","",""]
["311.3.1.","30ml.talpos"]
[null,"","","","Suma be PVM",null,"","","","","",""]
[null,"","","","PVM suma",null,"","","","","",""]
[null,"","","","Suma su PVM",null,"","","","","",""]
[]
["312.","Hemostatinės kempinėlės"]
["312.1.","Kempinėlė hemostatinė 10x10x10 mm",100,"Vnt.",null,null,null,"","",""]
["312.2.","Kempinėlė hemostatinė 70x50x10 mm",250,"Vnt.",null,null,null,"","",""]
[null,"","","","Suma be PVM",null,"","","","","",""]
[null,"","","","PVM suma",null,"","","","","",""]
[null,"","","","Suma su PVM",null,"","","","","",""]
[]
["313.","Prezervatyvai"]
["313.1.","Prezervatyvai",7000,"Vnt.",null,null,null,"","",""]
["313.1.1.","Apsauga davikliams"]
[null,"","","","Suma be PVM",null,"","","","","",""]
[null,"","","","PVM suma",null,"","","","","",""]
[null,"","","","Suma su PVM",null,"","","","","",""]
[]
["314.","Priemonės troakarui"]
["314.1.","Guminė kepurėlė",50,"Vnt.",null,null,null,"","",""]
["314.1.1.","Guminės kepurėlės trokarui 5mm"]
["314.1.2.","Tinka įvairių gamintojų trokarams ir 5mm instrumentams                                           "]
["314.2.","Guminė kepurėlė",50,"Vnt.",null,null,null,"","",""]
["314.2.1.","Guminės kepurėlės trokarui 10mm"]
["314.2.2.","Tinka įvairių gamintojų trokarams                                            "]
["314.3.","Trokarų kepurėlės",300,"Vnt.",null,null,null,"","",""]
["314.3.1.","5,5 ± 0,5mm skersmens trokarams, tinkamos ligoninės turimiems firmos „Karl Storz“ trokarams"]
["314.4.","Trokarų kepurėlės",150,"Vnt.",null,null,null,"","",""]
["314.4.1.","10,5 ± 0,5mm skersmens trokarams, tinkamos ligoninės turimiems firmos „Karl Storz“ trokarams"]
[null,"","","","Suma be PVM",null,"","","","","",""]
[null,"","","","PVM suma",null,"","","","","",""]
[null,"","","","Suma su PVM",null,"","","","","",""]
[]
["315.","Drėkintuvas CPAP sistemai"]
["315.1.","Drėkintuvas CPAP sistemai",10,"Vnt.",null,null,null,"","",""]
["315.1.1.","2 angos M kontūrams prijungti-22mm, jungtis vandeniui pilti, vienkartiniai, skirti naujagimiams, be automatinės plūdės, su atžyma vandens kiekiui"]
[null,"","","","Suma be PVM",null,"","","","","",""]
[null,"","","","PVM suma",null,"","","","","",""]
[null,"","","","Suma su PVM",null,"","","","","",""]
[]
["316.","Rinkinys hermioplastikai"]
["316.1.","Rinkinys hermioplastikai, turi tikti prie gydymo įstaigoje turimų daugkartinių vožtuvų: Fiksavimo balionas",60,"Vnt.",null,null,null,"","",""]
["316.1.1.","Sterilus, be latekso, darbinis kanalas permatomas (skaidrus), diametras 11 ± 0,5mm. "]
["316.1.2.","Darbinis kanalas su kempine fiksavimui prie pjūvio, bei kraujavimo stabdymui"]
["316.1.3.","Su galimybe prijungti daugkartinio naudojimo vožtuvą (prijungtas vožtuvas su balionu turi sudaryti vientisą sistemą) "]
["316.1.4.","Atskiras kanalas su kraneliu fiksavimo balionėlio išpūtimui"]
["316.1.5.","Optika ir balionėlis sąlyčio taškų neturi "]
["316.1.6.","Komplektuojama su 30ml švirkštu"]
["316.2.","Rinkinys hermioplastikai, turi tikti prie gydymo įstaigoje turimų daugkartinių vožtuvų: Išplėtimo balionas",60,"Vnt.",null,null,null,"","",""]
["316.2.1.","Sterilus, be latekso, darbinis kanalas permatomas (skaidrus), diametras 11 ± 0,5mm "]
["316.2.2.","Su galimybe prijungti daugkartinio naudojimo vožtuvą (prijungtas vožtuvas su balionu turi sudaryti vientisą sistemą)"]
["316.2.3.","Komplektuojamas su oro pripūtimo kriauše"]
["316.2.4.","Optika lieka išpūsto baliono viduje"]
[null,"","","","Suma be PVM",null,"","","","","",""]
[null,"","","","PVM suma",null,"","","","","",""]
[null,"","","","Suma su PVM",null,"","","","","",""]
[]
["317.","Gigli vielos"]
["317.1.","Rankena gigli pjūkleliams",4,"Vnt.",null,null,null,"","",""]
["317.1.1.","T formos"]
["317.1.2.","Rankenos ergonomiško, su susiaurėjimais abiejose pusėse"]
["317.1.3.","Sukasi aplink savo ašį"]
["317.1.4.","Vielos fiksacija užlenktu kabliuku"]
["317.2.","Gigli vielos",25,"Vnt.",null,null,null,"","",""]
["317.2.1.","Aštrios, smulkios"]
["317.2.2.","Supintos iš 6 vielų"]
["317.2.3.","Skersmuo 1,4mm pločio, 500 ± 5mm ilgio"]
["317.2.4.","Pakuotėje po 5 vnt."]
["317.3.","Gigli vielos",40,"Vnt.",null,null,null,"","",""]
["317.3.1.","Stambaus pynimo iš keturių vielų 500 ± 5mm ilgio"]
["317.3.2.","Pakuotėje po 5 vnt."]
[null,"","","","Suma be PVM",null,"","","","","",""]
[null,"","","","PVM suma",null,"","","","","",""]
[null,"","","","Suma su PVM",null,"","","","","",""]
[]
["318.","Sistema skirta e-Pump enterinės mitybos pompai"]
["318.1.","Sistema skirta e-Pump enterinės mitybos pompai",300,"Vnt.",null,null,null,"","",""]
["318.1.1.","Su 1ltr. Maišu"]
[null,"","","","Suma be PVM",null,"","","","","",""]
[null,"","","","PVM suma",null,"","","","","",""]
[null,"","","","Suma su PVM",null,"","","","","",""]
[]
["319.","PEG rinkinys"]
["319.1.","PEG rinkinys",120,"Vnt.",63,{"$f":"E256*120","v":7560},"Standard PEG kit, gam.Boston Scientific M00568381 ir M00568391 ","","",""]
["319.1.1.","Rinkinys perkutaninei endoskopinei gastrostomijai PEG: gastrostominis vamzdelis su integruota kilpa, vienkartinis, sterilus, rentgenokontrastinis, dydžiai CH18, CH20",null,null,null,null,null,"Gastrostomonis vamzdelis, kilpa, vienkartinis, sterilus, ro kontrastinis, 20 ir 24 Fr"]
["319.1.2.","Endoskopo kontrolėje, gastrostomos vamzdelis į skrandį įvedamas taikant „traukimo techniką“, su pritvirtintu vidiniu fiksatoriumi, kuris sukrenta ir leidžia PEG kateterį pašalinti per pilvo sieną, nenaudojant endoskopo, išorine fiksavimo polkštele, fiksuojant gastrostominį kateterį prie pilvo sienos",null,null,null,null,null,"atitinka"]
["319.1.3.","Rinkinyje turi būti punkcinė adata, ritinys su traukimo siūlu, dvigubos kilpos jungtis tarp traukimo siūlo ir gastrostomos vamzdelio, skalpeli.",null,null,null,null,null,"Punkcinė adata, sklapelis, dvigubos kilpos jungtis."]
["319.1.4.","Perkančioji organizacija prašo pateikti šios pirkimo dalies pavyzdį",null,null,null,null,null,"pateikta"]
[null,"","","","Suma be PVM",7560,"","","","","",""]
[null,"","","","PVM suma",{"$f":"F263-F261","v":378},"","","","","",""]
[null,"","","","Suma su PVM",{"$f":"F261*1.05","v":7938},"","","","","",""]
[]
["320.","Gastrostominis zondas G-tube su Enlock jungtimi"]
["320.1.","Gastrostominis zondas G-tube su Enlock jungtimi",30,"Vnt.",23,{"$f":"E266*30","v":690},"Standard balloon replacement, gam.Boston Scientific, M00582070, M00582080","","",""]
["320.1.1.","Silikoninis, balioninis gastrostominis zondas su Enlock jungtimi, naudojamas įvesto zondo (PEG arba G-tube) pakeitimui arba kaip pirminis zondas, įvedamas chirurginės intervencijos metu",null,null,null,null,null,"silikoninis balioninis vamzdelis, turi enlock jungtį."]
["320.1.2.","Skaidrus, ne daugiau kaip 23cm ilgio poliuretano zondas (gali būti 18, 20 CH), su silikoniniu fiksavimo balionu, turinčiu rentgenokontrastinę juostelę",null,null,null,null,null,"skaidrus, 23 cm ilgio, 18Fr arba 20 Fr, arba kito dydžio, pagal kliento poreikį, fiksavimo balionas, ro kontrastinė žymė."]
["320.1.3.","Į balioną per vožtuvą prisipila skystis ar prileidžiama oro",null,null,null,null,null,"turi vožtuvą, per kurį įsipila vanduo"]
["320.1.4.","Supakuoti po vieną, sterilūs, arba lygiavertis produktas",null,null,null,null,null,"supakuotas po vieną, sterilus."]
[null,"","","","Suma be PVM",690,"","","","","",""]
[null,"","","","PVM suma",{"$f":"F273-F271","v":34.5},"","","","","",""]
[null,"","","","Suma su PVM",{"$f":"F271*1.05","v":724.5},"","","","","",""]
[]
["321.","Nosies įtvarai po operacijos"]
["321.1.","Nosies įtvarai po operacijos",30,"Vnt.",null,null,null,"","",""]
["321.1.1.","Termoplastic Splint- termoplastinė medžiaga, pašildyta tampa minkšta ir gali būti pritaikyta formavimui, per trumpą laiką atvėsta ir tampa kieta, išlaiko formą kuri yra naudojama po nosies operacijų sutvirtinti nosies nugarėlei"]
["321.1.2.","Nesterili pakuotė"]
["321.1.3.","Arba lygiavertis."]
[null,"","","","Suma be PVM",null,"","","","","",""]
[null,"","","","PVM suma",null,"","","","","",""]
[null,"","","","Suma su PVM",null,"","","","","",""]
[]
["322.","Nosies įtvarai po operacijos"]
["322.1.","Nosies įtvarai po operacijos",50,"Vnt.",null,null,null,"","",""]
["322.1.1.","Alu Splint- termoplastinė aliuminio plokštelė, minkšta lankstoma"]
["322.1.2.","Dedama ant nosies nugarėlės virš lipnių juostelių, kad nebūtų tiesioginio kontakto su oda"]
["322.1.3.","Naudojama po nosies operacijų minkštųjų audinių edemai sumažinti"]
["322.1.4.","Nesterili pakuotė"]
["322.1.5.","Arba lygiavertis."]
[null,"","","","Suma be PVM",null,"","","","","",""]
[null,"","","","PVM suma",null,"","","","","",""]
[null,"","","","Suma su PVM",null,"","","","","",""]
[]
["323.","Šampūnas suaugusiems"]
["323.1.","Šampūnas suaugusiems",17500,"ml",null,null,null,"","",""]
[null,"","","","Suma be PVM",null,"","","","","",""]
[null,"","","","PVM suma",null,"","","","","",""]
[null,"","","","Suma su PVM",null,"","","","","",""]
[]
["324.","Lazerio fibropluoštinių skaidulų rinkinys"]
["324.1.","Lazerio fibropluoštinių skaidulų rinkinys",4,"Komplektai",null,null,null,"","",""]
["324.1.1.","Lazerio fibropluoštinių skaidulų rinkinys, kurį sudaro: skaidulos 230µm, ilgis 3 m, 3 vnt.; skaidulos 365µm, ilgis 3 m, 3 vnt.; skaidulos 600µm, ilgis 3 m, 3 vnt"]
["324.1.2.","Fibropluoštinės skaidulos turi tikti su ligoninės turimu „ Karl Storz“ Calculase II Holmium tipo lazeriu"]
[null,"","","","Suma be PVM",null,"","","","","",""]
[null,"","","","PVM suma",null,"","","","","",""]
[null,"","","","Suma su PVM",null,"","","","","",""]
[]
["325.","Skysčių padavimo sistema"]
["325.1.","Skysčių padavimo sistema",4,"Vnt.",null,null,null,"","",""]
["325.1.1.","Skirta hysteroskopijoms atlikti, silikoninė, su slėgiuniu davikliu, tinkama naudoti su ligoninės turima firmos : Karl Storz“ hysteroskopine pompa Hamuo endomat"]
[null,"","","","Suma be PVM",null,"","","","","",""]
[null,"","","","PVM suma",null,"","","","","",""]
[null,"","","","Suma su PVM",null,"","","","","",""]
[]
["326.","Slėginė membrana"]
["326.1.","Slėginė membrana",10,"Vnt.",null,null,null,"","",""]
["326.1.1.","Tinkanti naudoti su ligoninės turima firmos „ Karl Storz“ slėgine galvute"]
[null,"","","","Suma be PVM",null,"","","","","",""]
[null,"","","","PVM suma",null,"","","","","",""]
[null,"","","","Suma su PVM",null,"","","","","",""]
[]
["327.","Skarifikatoriai alergenams"]
["327.1.","Skarifikatoriai alergenams",2000,"Vnt.",null,null,null,"","",""]
["327.1.1.","Standartizuotos, vienkartinės, sterilios metalo adatėlės su 1mm dūrio gyliu"]
["327.1.2.","Naudojama odos alerginiams testams"]
["327.1.3.","Perkančioji organizacija prašo pateikti šios pirkimo dalies pavyzdį"]
[null,"","","","Suma be PVM",null,"","","","","",""]
[null,"","","","PVM suma",null,"","","","","",""]
[null,"","","","Suma su PVM",null,"","","","","",""]
[]
["328.","Anoskopas"]
["328.1.","Anoskopas",200,"Vnt.",null,null,null,"","",""]
["328.1.1.","Vienkartinio naudojimo"]
["328.1.2.","Plastikinis,"]
["328.1.3.","Su apšvietimu"]
["328.1.4.","Darbinis kanalas 96mm ilgio"]
["328.1.5.","Diametras 23mm "]
["328.2.","Anoskopas",200,"Vnt.",null,null,null,"","",""]
["328.2.1.","Vienkartinio naudojimo"]
["328.2.2.","Plastikinis, su apšvietimu"]
["328.2.3.","Darbinis kanalas 103mm "]
["328.2.4.","Diametras 18mm"]
["328.3.","Anoskopas",200,"Vnt.",null,null,null,"","",""]
["328.3.1.","Vienkartinio naudojimo"]
["328.3.2.","Pplastikinis, "]
["328.3.3.","Su apšvietimu,"]
["328.3.4.","Darbinis kanalas 90 mm"]
["328.3.5.","Diametras 18mm"]
[null,"","","","Suma be PVM",null,"","","","","",""]
[null,"","","","PVM suma",null,"","","","","",""]
[null,"","","","Suma su PVM",null,"","","","","",""]
[]
["329.","Laparoskopiniai maišeliai"]
["329.1.","Laparoskopiniai maišeliai",70,"Vnt.",null,null,null,"","",""]
["329.1.1.","Laparoskopinis maišelis skirtas ištraukti organams"]
["329.1.2.","Naudojamas su 12mm troakaru, talpa 500ml su nusisukančia/ užsisukančia rankena"]
["329.1.3.","Maišelis pagamintas iš poliuretano, tvirtas, neplyštantis"]
["329.1.4.","Maišelio skersmuo ≥110mm, gylis ≥200mm"]
[null,"","","","Suma be PVM",null,"","","","","",""]
[null,"","","","PVM suma",null,"","","","","",""]
[null,"","","","Suma su PVM",null,"","","","","",""]
[]
["330.","Odos siuvimo aparatai su kabučių išėmėjais"]
["330.1.","Odos siuvimo aparatai su kabučių išėmėjais",1700,"Vnt.",0.379,{"$f":"E365*1700","v":644.29999999999995},"3M//Precise Vista skin stapler 3995 Precise skin staple remover      akSR-1","","",""]
["330.1.1.","Pistoleto tipo rankena , užtaisyta  35 kabutėmis ± 3 kabutės",null,null,null,null,null,"Pistoleto tipo rankena su 35 kabėm"]
["330.1.2.","Kabutės dydis 6,9x3,9mm ± 1mm",null,null,null,null,null,"6,9mmx3,9mm"]
["330.1.3.","Kartu su aparatu pateikiamas ir kabučių išėmėjas",null,null,null,null,null,"kartu su aparatais pateikiami kabučių išėmėjai"]
["330.1.4.","5 ±1 pistoleto tipo rankenos + 1 Kabučių išėmėjas",null,null,null,null,null,"6 rankenos +1 išėmėjas"]
[null,"","","","Suma be PVM",644.29999999999995,"","","","","",""]
[null,"","","","PVM suma",{"$f":"F372-F370","v":135.303},"","","","","",""]
[null,"","","","Suma su PVM",{"$f":"F370*1.21","v":779.60299999999995},"","","","","",""]
[]
["331.","Kremas pragulų profilaktikai"]
["331.1.","Kremas pragulų profilaktikai",200000,"ml",null,null,null,"","",""]
["331.1.1.","1000ml ± 50ml"]
[null,"","","","Suma be PVM",null,"","","","","",""]
[null,"","","","PVM suma",null,"","","","","",""]
[null,"","","","Suma su PVM",null,"","","","","",""]
[]
["332.","Kilpa polipektominė"]
["332.1.","Kilpa polipektominė",150,"Vnt.",13,{"$f":"E382*150","v":1950},"Captivator, gam. Boston Scientific","","",""]
["332.1.1.","Vienkartinė, sterili, ilgis -2300mm, kilpos skersmuo-25mm, vielos storis – 0,47mm, darbiniam kanalui 2,8mm",null,null,null,null,null,"vienkartinė, sterili, ilgis 2400 mm, kilpos skersmuo 13-33mm, skersmuo 0,47 mm, tinka darbiniam kanalui 2,8 mm"]
[null,"","","","Suma be PVM",1950,"","","","","",""]
[null,"","","","PVM suma",{"$f":"F386-F384","v":97.5},"","","","","",""]
[null,"","","","Suma su PVM",{"$f":"F384*1.05","v":2047.5},"","","","","",""]
[]
["333.","Chirurginio pjūvio užsiuvimo priemonė"]
["333.1.","Pjūviams iki 4 cm užsiūti",40,"Vnt.",null,null,null,"","",""]
["333.1.1.","Sterili, pagaminta iš prilimpančio prie odos pagrindo, nealergizuojančio odos, neatlimpančio pacientui naudojantis dušu"]
["333.1.2.","Su integruotais poliuretaniniais ir hidrokoloidiniais pjūvio suglaudimo bei fiksavimo elementais, neinvazinė (be odos perforavimo, paliekanti mažesnius randus)"]
["333.1.3.","Įgalinanti 8 kartus stipresnį fiksavimą nei chirurginiais siūlais, ženkliai sumažinanti minkštųjų audinių perfuziją siūlės vietoje"]
["333.1.4.","Priemonė turi būti karpoma, kad pilnai atitiktų pjūvio dydį. Pateikti reikalaujamas charakteristikas įrodančius gamintojo dokumentus ir CE atitikties sertifikatus"]
["333.1.5.","Dėžutėse (sterilus įpakavimas)"]
["333.2.","Pjūviams iki 8 cm užsiūti",60,"Vnt.",null,null,null,"","",""]
["333.2.1.","Sterili, pagaminta iš prilimpančio prie odos pagrindo, nealergizuojančio odos, neatlimpančio pacientui naudojantis dušu"]
["333.2.2.","Su integruotais poliuretaniniais ir hidrokoloidiniais pjūvio suglaudimo bei fiksavimo elementais, neinvazinė (be odos perforavimo, paliekanti mažesnius randus)"]
["333.2.3.","Įgalinanti 8 kartus stipresnį fiksavimą nei chirurginiais siūlais, ženkliai sumažinanti minkštųjų audinių perfuziją siūlės vietoje"]
["333.2.4.","Priemonė turi būti karpoma, kad pilnai atitiktų pjūvio dydį. Pateikti reikalaujamas charakteristikas įrodančius gamintojo dokumentus ir CE atitikties sertifikatus"]
["333.2.5.","Dėžutėse (sterilus įpakavimas)"]
["333.3.","Pjūviams iki 16 cm užsiūti",80,"Vnt.",null,null,null,"","",""]
["333.3.1.","Sterili, pagaminta iš prilimpančio prie odos pagrindo, nealergizuojančio odos, neatlimpančio pacientui naudojantis dušu"]
["333.3.2.","Su integruotais poliuretaniniais ir hidrokoloidiniais pjūvio suglaudimo bei fiksavimo elementais, neinvazinė (be odos perforavimo, paliekanti mažesnius randus)"]
["333.3.3.","Įgalinanti 8 kartus stipresnį fiksavimą nei chirurginiais siūlais, ženkliai sumažinanti minkštųjų audinių perfuziją siūlės vietoje"]
["333.3.4.","Priemonė turi būti karpoma, kad pilnai atitiktų pjūvio dydį. Pateikti reikalaujamas charakteristikas įrodančius gamintojo dokumentus ir CE atitikties sertifikatus"]
["333.3.5.","Dėžutėse (sterilus įpakavimas)"]
["333.4.","Pjūviams iki 24 cm užsiūti",20,"Vnt.",null,null,null,"","",""]
["333.4.1.","Sterili, pagaminta iš prilimpančio prie odos pagrindo, nealergizuojančio odos, neatlimpančio pacientui naudojantis dušu"]
["333.4.2.","Su integruotais poliuretaniniais ir hidrokoloidiniais pjūvio suglaudimo bei fiksavimo elementais, neinvazinė (be odos perforavimo, paliekanti mažesnius randus)"]
["333.4.3.","Įgalinanti 8 kartus stipresnį fiksavimą nei chirurginiais siūlais, ženkliai sumažinanti minkštųjų audinių perfuziją siūlės vietoje"]
["333.4.4.","Priemonė turi būti karpoma, kad pilnai atitiktų pjūvio dydį. Pateikti reikalaujamas charakteristikas įrodančius gamintojo dokumentus ir CE atitikties sertifikatus"]
["333.4.5.","Dėžutėse (sterilus įpakavimas)"]
[null,"","","","Suma be PVM",null,"","","","","",""]
[null,"","","","PVM suma",null,"","","","","",""]
[null,"","","","Suma su PVM",null,"","","","","",""]
[]
["334.","Siūlai raiščiams – siuvimo priemonė"]
["334.1.","Ø5(7,0 metric dydis)",60,"Vnt.",null,null,null,"","",""]
["334.1.1.","Sterilus, pagamintas iš ultra aukštos molekulinės masės polietileno, nesirezorbuojantis siūlas su adatom, 26 mm 1/2 smailėjančios, ilgis 36\" (90 cm)"]
["334.1.2.","Dėžutėse (sterilus įpakavimas). "]
["334.1.3.","Pateikti reikalaujamas charakteristikas įrodančius gamintojo ir CE atitikties sertifikatus."]
["334.2.","Ø2 (5,0 metric) Balta/juoda spalva",60,"Vnt.",null,null,null,"","",""]
["334.2.1.","Sterilus,  pagamintas iš ultra aukštos molekulinės masės polietileno, nesirezorbuojantis siūlas su adatom, 26 mm 1/2 smailėjančios, ilgis 36\" (90 cm)."]
["334.2.2.","Dėžutėse (sterilus įpakavimas). "]
["334.2.3.","Pateikti reikalaujamas charakteristikas įrodančius gamintojo ir CE atitikties sertifikatus."]
["334.3.","2,0mm pločio",20,"Vnt.",null,null,null,"","",""]
["334.3.1.","Sterli, pagaminta iš ultra aukštos molekulinės masės polietileno, nesirezorbuojanti siuvimo juostelė (pinta, spalva – balta/ mėlyna), 24\"/7\" ilgis."]
["334.3.2.","2,0mm pločio"]
["334.3.3.","Pateikti reikalaujamas charakteristikas įrodančius gamintojo ir CE atitikties sertifikatus."]
[null,"","","","Suma be PVM",null,"","","","","",""]
[null,"","","","PVM suma",null,"","","","","",""]
[null,"","","","Suma su PVM",null,"","","","","",""]
[]
["335.","Balionai nosies, nosies tamponai kraujavimui iš nosies stabdyti, nelimpantys;"]
["335.1.","4,5 cm nelimpantis nosies balionas kraujavimui iš nosies stabdyti",5,"Dėž.",null,null,null,"","",""]
["335.1.1.","~4,5 cm ilgio lateksinis nosies balionas, padengtas nailonu su karboksimetilceliulioze, kuri reaguodama su steriliu vandeniu sudaro didelio elastingumo gelį"]
["335.1.2.","Su lateksine pūslele pripūsto oro slėgio kontrolei ir pripūtimo vožtuvu"]
["335.1.3.","Įdėtas į nosį pripučiamas, prisitaiko prie nosies anatomijos"]
["335.1.4.","Lengvai įdedamas į nosį ir lengvai išimamas"]
["335.1.5.","Su apsauga, tvirtinimo „drugeliu“ tipo ,kad pacientas nenurytų"]
["335.2.","5,5 cm nelimpantis nosies balionas kraujavimui iš nosies stabdyti",5,"Dėž.",null,null,null,"","",""]
["335.2.1.","~5,5 cm ilgio lateksinis nosies balionas, padengtas nailonu su karboksimetilceliulioze, kuri reaguodama su steriliu vandeniu sudaro didelio elastingumo gelį"]
["335.2.2.","Su lateksine pūslele pripūsto oro slėgio kontrolei ir pripūtimo vožtuvu"]
["335.2.3.","Įdėtas į nosį pripučiamas, prisitaiko prie nosies anatomijos"]
["335.2.4.","Lengvai įdedamas į nosį ir lengvai išimamas"]
["335.2.5.","Su apsauga, tvirtinimo „drugeliu“ tipo ,kad pacientas nenurytų"]
["335.3.","7,5 cm nelimpantis nosies balionas kraujavimui iš nosies stabdyti",5,"Dėž.",null,null,null,"","",""]
["335.3.1.","~7,5 cm ilgio lateksinis nosies balionas, padengtas nailonu su karboksimetilceliulioze, kuri reaguodama su steriliu vandeniu sudaro didelio elastingumo gelį"]
["335.3.2.","Su lateksine pūslele pripūsto oro slėgio kontrolei ir pripūtimo vožtuvu"]
["335.3.3.","Įdėtas į nosį pripučiamas, prisitaiko prie nosies anatomijos"]
["335.3.4.","Lengvai įdedamas į nosį ir lengvai išimamas"]
["335.3.5.","Su apsauga, tvirtinimo „drugeliu“ tipo ,kad pacientas nenurytų"]
["335.4.","5,5 cm nelimpantis nosies balionas kraujavimui iš nosies stabdyti, dvigubas",5,"Dėž.",null,null,null,"","",""]
["335.4.1.","~ Du 5,5 cm ilgio lateksiniai nosies balionai, padengti  nailonu su karboksimetilceliulioze, kuri reaguodama su steriliu vandeniu sudaro didelio elastingumo gelį"]
["335.4.2.","Su lateksine pūslele pripūsto oro slėgio kontrolei ir pripūtimo vožtuvu"]
["335.4.3.","Įdėti į nosį pripučiami, prisitaiko prie nosies anatomijos"]
["335.4.4.","Lengvai įdedami į nosį ir lengvai išimami"]
["335.5.","7,5 cm nelimpantis nosies balionas kraujavimui iš nosies stabdyti, dvigubas",5,"Dėž.",null,null,null,"","",""]
["335.5.1.","~ 7,5 cm ilgio lateksiniai nosies balionai, padengti  nailonu su karboksimetilceliulioze, kuri reaguodama su steriliu vandeniu sudaro didelio elastingumo gelį"]
["335.5.2.","Su lateksine pūslele pripūsto oro slėgio kontrolei ir pripūtimo vožtuvu"]
["335.5.3.","Įdėti į nosį pripučiami, prisitaiko prie nosies anatomijos"]
["335.5.4.","Lengvai įdedami į nosį ir lengvai išimami"]
["335.6.","9 cm nelimpantis nosies balionas kraujavimui iš nosies stabdyti",5,"dėž.",null,null,null,"","",""]
["335.6.1.","~9 cm ilgio lateksinis nosies balionas, padengtas nailonu su karboksimetilceliulioze, kuri reaguodama su steriliu vandeniu sudaro didelio elastingumo gelį"]
["335.6.2.","Nosies balionas sudarytas iš dviejų dalių: galinio nosies baliono, kuris pripūstas sustabdo kraujavimą iš užpakalinės nosies dalies, ir priekinio nosies baliono, kuris stabdo kraujavimą ir priekinės nosies dalies "]
["335.6.3.","Su lateksine pūslele pripūsto oro slėgio kontrolei ir pripūtimo vožtuvu"]
["335.6.4.","Įdėti į nosį pripučiami, prisitaiko prie nosies anatomijos; "]
["335.6.5.","Lengvai įdedamas į nosį ir lengvai išimamas"]
["335.6.6.","Su apsauga,„drugelio“ tipo, kad pacientas nenurytų"]
["335.7.","Tamponas nosies, nelimpantis",10,"Dėž.",null,null,null,"","",""]
["335.7.1.","Tamponai kraujavimui iš nosies stabdyti"]
["335.7.2.","Išmatavimai 8 cm arba 5,5 cm ±0,05mm (turi būti pasirinkimas abiejų dydžių) "]
["335.7.3.","Tamponas pagamintas iš kempinės, padengtas nailonu su karboksimetilceliulioze "]
["335.7.4.","Lengvai įdedamas į nosį ir lengvai išimamas"]
["335.7.5.","Sterilus,pakuotėje 1 vnt"]
["335.8.","Tamponas nosies, nelimpantis",10,"Dėž.",null,null,null,"","",""]
["335.8.1.","Tamponai kraujavimui iš nosies stabdyti"]
["335.8.2.","Išmatavimai 3 cm arba 4 cm ±0,05mm (turi būti pasirinkimas abiejų dydžių)"]
["335.8.3.","Tamponas pagamintas iš kempinės, padengtas nailonu su karboksimetilceliulioze "]
["335.8.4.","Lengvai įdedamas į nosį ir lengvai išimamas"]
["335.8.5.","Sterilus,pakuotėje 1 vnt."]
[null,"","","","Suma be PVM",null,"","","","","",""]
[null,"","","","PVM suma",null,"","","","","",""]
[null,"","","","Suma su PVM",null,"","","","","",""]
[]
["336.","Sterilios trikalcio-fosfato (TCP)/kaulų pakaitalai"]
["336.1.","Granulės",255,"Vnt.",null,null,null,"","",""]
["336.1.1.","0,5-1,0mm – 1,0 – 2,0mm. (sterilus įpakavimas po 1,0 gr.) "]
["336.1.2.","Sterili, sintetinė, cheminė sudėtis: 99,9%Trikalcio fosfato, 100% besirezorbuojanti (pavirstanti nauju kauliniu audiniu per 1-6 mėnesius)"]
["336.1.3.","Porėta sintetinės keramikos priemonė skirta kaulų defektams bei trūkumams užpildyti. Naudojama kaulų lūžių defektams, stuburo artrodezės, blauzdikaulio osteotomijai, blauzdikaulio/ šlaunikaulio lūžių, kelio ir klubo sąnario operacijų metu atsirandančių kaulų trūkumams užpildyti"]
["336.1.4.","Priemonė turi gerai sulimpanti, rentgeno kontrastiška, turi būti užtikrinta pilna kaulinio audinio vaskuliarizacija"]
["336.1.5.","Turi būti galimybė pasirinkti granules, stačiakampio, cilindro bei pleišto formos kaulinį pakaitalą"]
["336.1.6.","Pateikti reikalaujamas charakteristikas įrodančius gamintojo dokumentus ir CE atitikties sertifikatus"]
["336.2.","Granulės",90,"Vnt.",null,null,null,"","",""]
["336.2.1.","3,0 – 4,0mm.  (sterilus įpakavimas po1,0 gr.) "]
["336.2.2.","Sterili, sintetinė, cheminė sudėtis: 99,9%Trikalcio fosfato, 100% besirezorbuojanti (pavirstanti nauju kauliniu audiniu per 1-6 mėnesius)"]
["336.2.3.","Porėta sintetinės keramikos priemonė skirta kaulų defektams bei trūkumams užpildyti. Naudojama kaulų lūžių defektams, stuburo artrodezės, blauzdikaulio osteotomijai, blauzdikaulio/ šlaunikaulio lūžių, kelio ir klubo sąnario operacijų metu atsirandančių kaulų trūkumams užpildyti"]
["336.2.4.","Priemonė turi gerai sulimpanti, rentgeno kontrastiška, turi būti užtikrinta pilna kaulinio audinio vaskuliarizacija"]
["336.2.5.","Turi būti galimybė pasirinkti granules, stačiakampio, cilindro bei pleišto formos kaulinį pakaitalą"]
["336.2.6.","Pateikti reikalaujamas charakteristikas įrodančius gamintojo dokumentus ir CE atitikties sertifikatus"]
["336.3.","Kaulų pakaitalų audinių formos:  stačiakampiai",18,"Dėž.",null,null,null,"","",""]
["336.3.1.","8,0x8,0 x20,0mm"]
["336.3.2.","15,0x 15,0x 20,0mm; "]
["336.3.3.","15,0x20,0x30,0mm"]
["336.3.4.","Dėžutėse (sterilus įpakavimas/ pasirinktos formos) 1 vnt"]
["336.3.5.","Sterili, sintetinė, cheminė sudėtis: 99,9%Trikalcio fosfato, 100% besirezorbuojanti (pavirstanti nauju kauliniu audiniu per 1-6 mėnesius)"]
["336.3.6.","Porėta sintetinės keramikos priemonė skirta kaulų defektams bei trūkumams užpildyti. Naudojama kaulų lūžių defektams, stuburo artrodezės, blauzdikaulio osteotomijai, blauzdikaulio/ šlaunikaulio lūžių, kelio ir klubo sąnario operacijų metu atsirandančių kaulų trūkumams užpildyti"]
["336.3.7.","Priemonė turi gerai sulimpanti, rentgeno kontrastiška, turi būti užtikrinta pilna kaulinio audinio vaskuliarizacija"]
["336.3.8.","Turi būti galimybė pasirinkti granules, stačiakampio, cilindro bei pleišto formos kaulinį pakaitalą"]
["336.3.9.","Pateikti reikalaujamas charakteristikas įrodančius gamintojo dokumentus ir CE atitikties sertifikatus"]
["336.4.","Kaulų pakaitalų audinių formos: cilindro, pleišto formos",10,"Dėž.",null,null,null,"","",""]
["336.4.1.","Cilindro formos - 8,0mmx20,0mm dydžio; "]
["336.4.2.","Pleišto  formos – 6,0mmx25,0mmx30,0mm; 8,0mmx25mmx30,0 mm ; 10,0mmx25,0mmx30,0mm; 12,0mmx25,0mm 30,0mm; 14,0mmx25,0mm30,0mm; dydžių pasirinktinai"]
["336.4.3.","Sterili, sintetinė, cheminė sudėtis: 99,9%Trikalcio fosfato, 100% besirezorbuojanti (pavirstanti nauju kauliniu audiniu per 1-6 mėnesius)"]
["336.4.4.","Porėta sintetinės keramikos priemonė skirta kaulų defektams bei trūkumams užpildyti. Naudojama kaulų lūžių defektams, stuburo artrodezės, blauzdikaulio osteotomijai, blauzdikaulio/ šlaunikaulio lūžių, kelio ir klubo sąnario operacijų metu atsirandančių kaulų trūkumams užpildyti"]
["336.4.5.","Priemonė turi gerai sulimpanti, rentgeno kontrastiška, turi būti užtikrinta pilna kaulinio audinio vaskuliarizacija"]
["336.4.6.","Turi būti galimybė pasirinkti granules, stačiakampio, cilindro bei pleišto formos kaulinį pakaitalą"]
["336.4.7.","Pateikti reikalaujamas charakteristikas įrodančius gamintojo dokumentus ir CE atitikties sertifikatus"]
[null,"","","","Suma be PVM",null,"","","","","",""]
[null,"","","","PVM suma",null,"","","","","",""]
[null,"","","","Suma su PVM",null,"","","","","",""]
[]
["337.","Sterilios Hidriksi apatito (HAp) ir trikalcio-fosfato granulės/kaulų pakaitalai"]
["337.1.","Granulės",255,"Vnt.",null,null,null,"","",""]
["337.1.1.","0,5-1,0mm – 1,0 – 2,0mm. (sterilus įpakavimas po 1,0 gr.) "]
["337.1.2.","Sterili, sintetinė, cheminė sudėtis: 25,0% Trikalcio fosfato ir 75% Hidroksil Apatito (HAp), 100% besirezorbuojanti (pavirstanti nauju kauliniu audiniu per 6-24 mėnesius)"]
["337.1.3.","Porėta sintetinės keramikos priemonė skirta kaulų defektams bei trūkumams užpildyti. Naudojama kaulų lūžių defektams, stuburo artrodezės, blauzdikaulio osteotomijai, blauzdikaulio/ šlaunikaulio lūžių, kelio ir klubo sąnario operacijų metu atsirandančių kaulų trūkumams užpildyti"]
["337.1.4.","Priemonė turi gerai sulimpanti, rentgenokontrastiška, turi būti užtikrinta pilna kaulinio audinio vaskuliarizacija"]
["337.1.5.","Turi būti galimybė pasirinkti granules, stačiakampio, cilindro bei pleišto formos kaulinį pakaitalą"]
["337.1.6.","Pateikti reikalaujamas charakteristikas įrodančius gamintojo dokumentus ir CE atitikties sertifikatus"]
["337.2.","Granulės",90,"Vnt.",null,null,null,"","",""]
["337.2.1.","3, – 4,0mm. (sterilus įpakavimas po 1,0 gr.)"]
["337.2.2.","Sterili, sintetinė, cheminė sudėtis: 25,0% Trikalcio fosfato ir 75% Hidroksil Apatito (HAp), 100% besirezorbuojanti (pavirstanti nauju kauliniu audiniu per 6-24 mėnesius)"]
["337.2.3.","Porėta sintetinės keramikos priemonė skirta kaulų defektams bei trūkumams užpildyti. Naudojama kaulų lūžių defektams, stuburo artrodezės, blauzdikaulio osteotomijai, blauzdikaulio/ šlaunikaulio lūžių, kelio ir klubo sąnario operacijų metu atsirandančių kaulų trūkumams užpildyti"]
["337.2.4.","Priemonė turi gerai sulimpanti, rentgenokontrastiška, turi būti užtikrinta pilna kaulinio audinio vaskuliarizacija"]
["337.2.5.","Turi būti galimybė pasirinkti granules, stačiakampio, cilindro bei pleišto formos kaulinį pakaitalą"]
["337.2.6.","Pateikti reikalaujamas charakteristikas įrodančius gamintojo dokumentus ir CE atitikties sertifikatus"]
["337.3.","Kaulų pakaitalų audinių formos: stačiakampiai",18,"Dėž.",null,null,null,"","",""]
["337.3.1.","8,0x8,0 x20,0mm; 15,0x 15,0x 20,0mm; 15,0x20,0x30,0mm. "]
["337.3.2.","Dėžutėse (sterilus įpakavimas/ pasirinktos formos) 1 vnt."]
["337.3.3.","Sterili, sintetinė, cheminė sudėtis: 25,0% Trikalcio fosfato ir 75% Hidroksil Apatito (HAp), 100% besirezorbuojanti (pavirstanti nauju kauliniu audiniu per 6-24 mėnesius)"]
["337.3.4.","Porėta sintetinės keramikos priemonė skirta kaulų defektams bei trūkumams užpildyti. Naudojama kaulų lūžių defektams, stuburo artrodezės, blauzdikaulio osteotomijai, blauzdikaulio/ šlaunikaulio lūžių, kelio ir klubo sąnario operacijų metu atsirandančių kaulų trūkumams užpildyti"]
["337.3.5.","Priemonė turi gerai sulimpanti, rentgenokontrastiška, turi būti užtikrinta pilna kaulinio audinio vaskuliarizacija"]
["337.3.6.","Turi būti galimybė pasirinkti granules, stačiakampio, cilindro bei pleišto formos kaulinį pakaitalą"]
["337.3.7.","Pateikti reikalaujamas charakteristikas įrodančius gamintojo dokumentus ir CE atitikties sertifikatus"]
["337.4.","Kaulų pakaitalų audinių formos: cilindro, pleišto formos",10,"Dėž.",null,null,null,"","",""]
["337.4.1.","Cilindro formos - 8,0mmx20,0mm dydžio; "]
["337.4.2.","Pleišto  formos – 6,0mmx25,0mmx30,0mm; 8,0mmx25mmx30,0 mm ; 10,0mmx25,0mmx30,0mm; 12,0mmx25,0mm 30,0mm; 14,0mmx25,0mm30,0mm; dydžių pasirinktinai"]
["337.4.3.","Sterili, sintetinė, cheminė sudėtis: 25,0% Trikalcio fosfato ir 75% Hidroksil Apatito (HAp), 100% besirezorbuojanti (pavirstanti nauju kauliniu audiniu per 6-24 mėnesius)"]
["337.4.4.","Porėta sintetinės keramikos priemonė skirta kaulų defektams bei trūkumams užpildyti. Naudojama kaulų lūžių defektams, stuburo artrodezės, blauzdikaulio osteotomijai, blauzdikaulio/ šlaunikaulio lūžių, kelio ir klubo sąnario operacijų metu atsirandančių kaulų trūkumams užpildyti"]
["337.4.5.","Priemonė turi gerai sulimpanti, rentgenokontrastiška, turi būti užtikrinta pilna kaulinio audinio vaskuliarizacija"]
["337.4.6.","Turi būti galimybė pasirinkti granules, stačiakampio, cilindro bei pleišto formos kaulinį pakaitalą"]
["337.4.7.","Pateikti reikalaujamas charakteristikas įrodančius gamintojo dokumentus ir CE atitikties sertifikatus"]
[null,"","","","Suma be PVM",null,"","","","","",""]
[null,"","","","PVM suma",null,"","","","","",""]
[null,"","","","Suma su PVM",null,"","","","","",""]
[]
["338.","Laparoskopinių audinių išėmimo maišelis 200ml"]
["338.1.","Laparoskopinių audinių išėmimo maišelis 200ml",20,"Vnt.",null,null,null,"","",""]
["338.1.1.","Savaime atsidarantis, su nitinolinės vielos kilpa"]
["338.1.2.","Galimas pakartotinis atvėrimas ir uždarymas operacijos metu (turi kilputes abiejuose galuose)"]
["338.1.3.","Maišelis turi įvedimo kaniulę pritaikytą 10mm trokarui"]
["338.1.4.","Įvedimo kaniulės turi spalvinę koduotę (balta ir žalia) lengvesniam identifikavimui"]
["338.1.5.","Maišelis tvirtas, neplyštantis, permatomas, nepralaidus skysčimas"]
[null,"","","","Suma be PVM",null,"","","","","",""]
[null,"","","","PVM suma",null,"","","","","",""]
[null,"","","","Suma su PVM",null,"","","","","",""]
[]
["339.","Išmatų rinktuvų maišeliai"]
["339.1.","Išmatų rinktuvų maišeliai",100,"Vnt.",null,null,null,"","",""]
["339.1.1.","Atviri, su filtru, lipnus užsegimas 45mm, 57mm, 70mm ±2mm"]
[null,"","","","Suma be PVM",null,"","","","","",""]
[null,"","","","PVM suma",null,"","","","","",""]
[null,"","","","Suma su PVM",null,"","","","","",""]
[]
["340.","Išmatų rinktuvų plokštelės "]
["340.1.","Išmatų rinktuvų plokštelės ",100,"Vnt.",null,null,null,"","",""]
["340.1.1.","Formuojamos pirštais, lygio 45mm, 57mm, 70mm ±2mm"]
[null,"","","","Suma be PVM",null,"","","","","",""]
[null,"","","","PVM suma",null,"","","","","",""]
[null,"","","","Suma su PVM",null,"","","","","",""]
[]
["341.","Stiklinis indas su įdėklu ir dangteliu objektyviniams stikliukams dažyti"]
["341.1.","Stiklinis indas su įdėklu ir dangteliu objektyviniams stikliukams dažyti",12,"rinkinys",null,null,null,"","",""]
["341.1.1.","Stiklas, aukštis 74mm ±3mm, ilgis 105mm ±3mm, plotis 8mm ±3mm. "]
["341.1.2.","Įdėklo griovelių skaičius 10"]
[null,"","","","Suma be PVM",null,"","","","","",""]
[null,"","","","PVM suma",null,"","","","","",""]
[null,"","","","Suma su PVM",null,"","","","","",""]
[]
["342.","Adatos odos dūrio mėginiams atlikti"]
["342.1.","Adatos odos dūrio mėginiams atlikti",6000,"Vnt.",null,null,null,"","",""]
["342.1.1.","Adata dūrio mėginiui turi būti plastikinė"]
["342.1.2.","Perkančioji organizacija prašo pateikti šios pirkimo dalies pavyzdį"]
[null,"","","","Suma be PVM",null,"","","","","",""]
[null,"","","","PVM suma",null,"","","","","",""]
[null,"","","","Suma su PVM",null,"","","","","",""]
[]
["343.","Transobturatorinis šlaplės fiksavimo raiščio rinkinys"]
["343.1.","Transobturatorinis šlaplės fiksavimo raiščio rinkinys",2,"Vnt.",302,{"$f":"E600*2","v":604},"Obtryx II, gam. Boston Scientific, M006850411","","",""]
["343.1.1.","Vienkartinis, steriliame įpakavime",null,null,null,null,null,"vienkartinis, sterilus"]
["343.1.2.","Raištis pagamintas iš vienagijo polipropileno tinklelio, galai baigiasi sutvirtinimu ir kilpomis",null,null,null,null,null,"raištis pagamintas iš vienagijo polipropileno tinklelio, galai baigiasi sutvirtinimu ir kilpomis"]
["343.1.3.","Tankis 90-95 g/m² storis 650µm ± 2µm",null,null,null,null,null,"atitinka"]
["343.1.4.","Juostelė plotis 1cm ± 0,01cm, ilgis 45cm  ± 1cm",null,null,null,null,null,"atitinka"]
["343.1.5.","Rinkinyje yra 2 vienkartiniai sraigto formos įvedėjai",null,null,null,null,null,"yra du vienkartiniai sraigto formos įvedėjai"]
[null,"","","","Suma be PVM",604,"","","","","",""]
[null,"","","","PVM suma",{"$f":"F608-F606","v":30.200000000000045},"","","","","",""]
[null,"","","","Suma su PVM",{"$f":"F606*1.05","v":634.20000000000005},"","","","","",""]
[]
["344.","Transobturatorinis šlaplės fiksavimo raištis"]
["344.1.","Transobturatorinis šlaplės fiksavimo raištis",10,"Vnt.",null,null,null,"","",""]
["344.1.1.","Vienkartinis, steriliame įpakavime"]
["344.1.2.","Raištis pagamintas iš vienagijo polipropileno tinklelio, galai baigiasi susiaurėjimu"]
["344.1.3.","Rentgenokontrastinis"]
["344.1.4.","Tankis 70-80g/m², storis 0,3mm. pluošto skersmuo 80µm, porų dydis 330µm, elastingumas iki 8%"]
["344.1.5.","Raiščio kraštai nuglūdinti. Pateikti tai įrodančius dokumentus"]
[null,"","","","Suma be PVM",null,"","","","","",""]
[null,"","","","PVM suma",null,"","","","","",""]
[null,"","","","Suma su PVM",null,"","","","","",""]
[]
["345.","Transobturatorinis šlaplės fiksavimo raiščio įvedėjų komplektas"]
["345.1.","Transobturatorinis šlaplės fiksavimo raiščio įvedėjas",2,"Vnt.",null,null,null,"","",""]
["345.1.1.","Daugkartinio naudojimo, sterilizuojamas"]
["345.1.2.","Įvedėjas pagamintas iš nerūdyjančio plieno, tinkantis abiems pusėms"]
["345.1.3.","Plokščios formos, su skylute raiščiui prakišti. "]
["345.1.4.","Komplekte 2 vnt."]
[null,"","","","Suma be PVM",null,"","","","","",""]
[null,"","","","PVM suma",null,"","","","","",""]
[null,"","","","Suma su PVM",null,"","","","","",""]
[]
["346.","Transobturatorinė, mini raiščio, vieno pjūvio šlaplės fiksavimo sistema"]
["346.1.","Transobturatorinė, mini raiščio, vieno pjūvio šlaplės fiksavimo sistema",4,"Vnt.",null,null,null,"","",""]
["346.1.1.","Vienkartinis, steriliame įpakavime"]
["346.1.2.","Susidedanti iš 2 transobturatorinių įvedėjų (įvedėjai išlenkti sraigto forma, skirti in-out prieigai) ir mini juostelė su 2 polipropileno inkariukais"]
["346.1.3.","Vienas inkariukas statiškas, kitas dinamiškas, skirti įtempimui reguliuoti"]
["346.1.4.","Inkariukai su pusiau lankščiais dantukais, neleidžiančiais juostelei pajudėti iš vietos, skėčio formos"]
["346.1.5.","Raiščio ilgis 7,5-8cm"]
["346.1.6.","Rentgenokontrastinis"]
["346.1.7.","Raiščio kraštai nuglūdinti. Tankis 70-80g/m², storis 0,3mm, pluošto skersmuo 80µm, porų dydis 330µm, elastingumas iki 8%"]
[null,"","","","Suma be PVM",null,"","","","","",""]
[null,"","","","PVM suma",null,"","","","","",""]
[null,"","","","Suma su PVM",null,"","","","","",""]
[]
["347.","Plastikiniai stentai, įvedimo rinkiniai"]
["347.1.","Plastikinių stentų įvedimo rinkiniai 8,5-11,5 Fr",10,"Vnt.",131,{"$f":"E645*10","v":1310},"Advanix RX with delivery system, gam. Boston Scientific,","","",""]
["347.1.1.","Vienkartiniai, komplektuojami kartu su stentu",null,null,null,null,null,"vienkartiniai, komplektuojami kartu su stentu"]
["347.1.2.","Stentų ilgiai 6-14cm",null,null,null,null,null,"stentų ilgiai 6-14 cm"]
["347.2.","Plastikiniai stentai 7-11,5 Fr",10,"Vnt.",131,{"$f":"E648*10","v":1310},"Advanix RX with delivery system, gam. Boston Scientific,","","",""]
["347.2.1.","Stentų ilgiai 6-14cm",null,null,null,null,null,"stentų ilgiai 6-14 cm"]
[null,"","","","Suma be PVM",{"$f":"F648+F645","v":2620},"","","","","",""]
[null,"","","","PVM suma",{"$f":"F652-F650","v":131},"","","","","",""]
[null,"","","","Suma su PVM",{"$f":"F650*1.05","v":2751},"","","","","",""]
[]
["348.","Rinkinys stentų įvedimui"]
["348.1.","Vienkartinis, tinkantis stentams 5-11,5Fr",10,"Vnt.",91,{"$f":"E655*10","v":910},"Naviflex RX delivery system, gam. Boston Scientific, M00533560-M00533580","","",""]
[null,"","","","Suma be PVM",910,"","","","","",""]
[null,"","","","PVM suma",{"$f":"F658-F656","v":45.5},"","","","","",""]
[null,"","","","Suma su PVM",{"$f":"F656*1.05","v":955.5},"","","","","",""]
[]
["349.","Rinkinys stentų įvedimui"]
["349.1.","Daugkartinio naudojimo, tinkantis stentams 7-11,5 Fr",3,"Vnt.",null,null,null,"","",""]
[null,"","","","Suma be PVM",null,"","","","","",""]
[null,"","","","PVM suma",null,"","","","","",""]
[null,"","","","Suma su PVM",null,"","","","","",""]
[]
["350.","Rinkinys kraujagyslių ekstrakcijai"]
["350.1.","Rinkinys kraujagyslių ekstrakcijai",5,"Vnt.",null,null,null,"","",""]
["350.1.1.","Zondas 100cm ilgio"]
["350.1.2.","Įvairių dydžių galvutės: 6,0mm, 9,0mm, 12mm"]
["350.1.3.","T formos rankenėlė. Autoklavuojamas"]
[null,"","","","Suma be PVM",null,"","","","","",""]
[null,"","","","PVM suma",null,"","","","","",""]
[null,"","","","Suma su PVM",null,"","","","","",""]

{"sheet":"Subtiekėjai","index":1,"n_rows":100,"n_cols":9,"rows_kept":100,"cut":false,"hidden":false,"merged":[[38,0,38,9],[21,1,21,6],[21,7,21,9],[24,0,24,3],[24,4,24,9],[25,0,25,9],[26,0,26,9],[28,0,28,9],[32,0,32,3],[32,4,32,9],[35,0,35,3],[35,4,35,9],[18,1,18,6],[18,7,18,9],[19,1,19,6],[19,7,19,9],[20,1,20,6],[20,7,20,9],[17,1,17,6],[17,7,17,9],[7,0,7,1],[7,2,7,4],[7,5,7,7],[7,8,7,9],[8,0,8,1],[8,2,8,4],[8,5,8,7],[8,8,8,9],[10,0,10,9],[12,0,12,9],[14,0,14,9],[16,1,16,6],[16,7,16,9],[5,0,5,1],[5,2,5,4],[5,5,5,7],[5,8,5,9],[6,0,6,1],[6,2,6,4],[6,5,6,7],[6,8,6,9],[4,0,4,1],[4,2,4,4],[4,5,4,7],[4,8,4,9],[1,0,1,9],[3,0,3,1],[3,2,3,4],[3,5,3,7],[3,8,3,9]]}
[]
["Sutarties vykdymui numatome pasitelkti šiuos subtiekėjus / subteikėjus / subrangovus (įrašyti visus subtiekėjus / subteikėjus / subrangovus nepriklausomai nuo tiekiamų prekių/ teikiamų paslaugų/ atliekamų darbų vertės):"]
[]
["Subtiekėjo / subteikėjo / subrangovo (-ų) pavadinimas (-ai)",null,"Adresas",null,null,"Trumpas aprašymas",null,null,"Procentas nuo pasiūlymo kainos be PVM"]
[]
[]
[]
[]
[]
[]
["Jeigu pirkimo dokumentų 18 punkte numatytas subtiekimo / subteikimo / subrangos apribojimas:\nMes patvirtiname, kad subtiekėjams / subteikėjams / subrangovams (tiekėjams, kuriuos pasamdysime dalies sutartyje numatytų prekių tiekimui /paslaugų teikimui / darbų atlikimui) perduodamų tiekti prekių / teikti paslaugų/ atlikti darbų dalis neviršys       proc. pasiūlymo kainos be PVM."]
[]
["Mes patvirtiname, kad esame / nesame (nereikalingą išbraukti) laikomi asocijuotais (susijusiais) su Perkančiąja organizacija pagal Lietuvos Respublikoje galiojančių teisės aktų (Lietuvos Respublikos pelno mokesčio, Lietuvos Respublikos pridėtinės vertės mokesčio ir Lietuvos Respublikos gyventojų pajamų mokesčio įstatymų) nuostatas. "]
[]
["Kartu su pasiūlymu pateikiami šie dokumentai:"]
[]
["Eil.Nr.","\"Pateiktų skaitmeninių dokumentų (ar jų kopijų) pavadinimas\n(pasiūlymą sudarančių konfidencialių dokumentų pavadinimai pažymėti prierašu KONFIDENCIALU)\"",null,null,null,null,null,"Prisegtos bylos (failo) pavadinimas "]
[null,"Įgaliojimas pasirašyti dokumentus",null,null,null,null,null,"Įgaliojimas pasirašyti dokumentus"]
[null,"Gamintoju igaliojimai",null,null,null,null,null,"Gamintoju igaliojimai"]
[null,"Sertifikatai",null,null,null,null,null,"Sertifikatai"]
[null,"Katalogai",null,null,null,null,null,"Katalogai"]
[]
[]
[]
["Pasiūlymo galiojimo užtikrinimui pateikiame :"]
[]
["(Nurodyti užtikrinimo būdą, dydį, dokumentus)"]
[]
["\nPasiūlymas galioja iki termino, nustatyto pirkimo dokumentuose.\n\nPasiūlymo neatskiriama dalis yra (rašoma, jeigu buvo reikalauta prie pasiūlymo pridėti atitinkamą dokumentą)"]
[]
[]
[]
["Tiekėjo arba jo įgalioto asmens pareigų pavadinimas",null,null,null,"Sandra Čaikė"]
[]
[]
["Pasirašančio asmens vardas ir pavardė",null,null,null,"Sandra Čaikė"]
[]
[]
["**kadangi visas pasiūlymas pasirašomas saugiu elektroniniu parašu, šio dokumento atskirai pasirašyti neprivaloma."]
[]
[]
[]
[]
[]
[]
[]
[]
[]
[]
[]
[]
[]
[]
[]
[]
[]
[]
[]
[]
[]
[]
[]
[]
[]
[]
[]
[]
[]
[]
[]
[]
[]
[]
[]
[]
[]
[]
[]
[]
[]
[]
[]
[]
[]
[]
[]
[]
[]
[]
[]
[]
[]
[]
[]
[]
[]
[]
[]
[]
["563-7"]